bitfinex/quotes_BTCUSD_20220303
["timestamp","ask_amount","ask_price","bid_price","bid_amount"]
[1646304106761,0.00033772,43218.0,43215.0,0.14]
[1646304106960,0.1737538,43216.0,43212.0,0.28359386]
[1646304107361,0.00018581,43218.0,43212.0,0.28359386]
[1646304107963,0.00018581,43218.0,43215.0,0.6]
[1646304112114,0.00018581,43218.0,43215.0,0.602]
[1646304112981,0.00018581,43218.0,43216.0,0.21444827]
[1646304113481,0.00018581,43218.0,43216.0,0.15701507]
[1646304114083,0.00018581,43218.0,43216.0,0.16001507]
[1646304114282,0.00018581,43218.0,43216.0,0.15991819]
[1646304115485,0.00018581,43218.0,43216.0,0.15691819]
[1646304116211,0.00018581,43218.0,43216.0,0.33560366]
[1646304116612,0.00018581,43218.0,43217.0,0.3]
[1646304118113,0.00018581,43218.0,43217.0,0.303]
[1646304119316,0.00018581,43218.0,43216.0,0.33260366]
[1646304120160,0.00018581,43218.0,43216.0,0.15991819]
[1646304121353,0.00018581,43218.0,43216.0,0.15691819]
[1646304121555,0.00018581,43218.0,43217.0,0.03992074]
[1646304122153,0.00018581,43218.0,43216.0,0.15691819]
[1646304123356,0.00018581,43218.0,43215.0,0.65635]
[1646304124412,0.00018581,43218.0,43215.0,0.83672371]
[1646304125208,0.00018581,43218.0,43215.0,0.78037371]
[1646304127857,0.00018581,43218.0,43215.0,0.95511348]
[1646304128256,0.00018581,43218.0,43215.0,0.95811348]
[1646304128758,0.00018581,43218.0,43215.0,0.76400197]
[1646304128956,0.00018581,43218.0,43215.0,0.69075738]
[1646304129167,0.00018581,43218.0,43215.0,0.51038367]
[1646304129457,0.00018581,43218.0,43215.0,0.50738367]
[1646304132105,0.00018581,43218.0,43215.0,0.51138367]
[1646304132705,0.17393961,43218.0,43215.0,0.51138367]
[1646304133310,0.23181961,43218.0,43215.0,0.51138367]
[1646304133508,0.1737538,43216.0,43215.0,0.50738367]
[1646304134704,0.05806581,43218.0,43215.0,0.50738367]
[1646304134958,0.1737538,43216.0,43215.0,0.50738367]
[1646304136261,0.1737538,43216.0,43215.0,0.51238367]
[1646304137460,0.1737538,43216.0,43215.0,0.50538367]
[1646304138720,0.0003239,43218.0,43215.0,0.50538367]
[1646304138920,0.0003239,43218.0,43216.0,0.3]
[1646304139121,0.0003239,43218.0,43217.0,0.14]
[1646304139320,0.011,43219.0,43218.0,0.7506478]
[1646304139520,0.011,43219.0,43218.0,0.3469478]
[1646304139720,0.011,43219.0,43218.0,0.0469478]
[1646304139925,0.1847538,43219.0,43218.0,0.0006478]
[1646304140121,0.1847538,43219.0,43218.0,0.0046478]
[1646304140729,0.43171332,43219.0,43218.0,0.0046478]
[1646304142024,0.43171332,43219.0,43218.0,0.0006478]
[1646304142223,0.43171332,43219.0,43218.0,0.0046478]
[1646304143564,0.1847538,43219.0,43218.0,0.0006478]
[1646304144165,0.1847538,43219.0,43218.0,0.0026478]
[1646304144964,0.011,43219.0,43218.0,0.0026478]
[1646304145366,0.011,43219.0,43218.0,0.0006478]
[1646304145567,0.011,43219.0,43218.0,0.0469478]
[1646304145870,0.011,43219.0,43218.0,0.3469478]
[1646304146304,0.011,43219.0,43218.0,0.3509478]
[1646304147206,0.011,43219.0,43218.0,0.3372471]
[1646304147406,0.011,43219.0,43218.0,0.3332471]
[1646304147810,0.011,43219.0,43218.0,0.0332471]
[1646304149208,0.011,43219.0,43218.0,0.1732471]
[1646304149811,0.002,43224.0,43219.0,1.0]
[1646304150095,0.115726,43232.0,43223.0,0.04643146]
[1646304150096,0.05,43232.0,43223.0,0.04643146]
[1646304150288,0.05,43232.0,43220.0,1.16944]
[1646304150289,0.05,43232.0,43224.0,0.0463]
[1646304150487,0.05,43232.0,43225.0,0.0463]
[1646304150787,0.05,43232.0,43228.0,0.15637502]
[1646304150989,0.1737538,43236.0,43228.0,0.20267502]
[1646304151292,0.1737538,43236.0,43228.0,0.0463]
[1646304151486,0.1737538,43236.0,43228.0,0.1863]
[1646304151687,0.1175,43239.0,43228.0,0.0463]
[1646304151888,0.00015129,43231.0,43228.0,0.0463]
[1646304152090,0.00015129,43231.0,43228.0,0.0458437]
[1646304153932,0.17390509,43231.0,43228.0,0.0458437]
[1646304154129,0.00060502,43240.0,43228.0,0.0458437]
[1646304154130,0.1138,43240.0,43228.0,0.0458437]
[1646304154343,0.00015233,43231.0,43228.0,0.0458437]
[1646304154531,0.16990613,43235.0,43229.0,1.0]
[1646304154731,0.16990613,43235.0,43234.0,0.18651054]
[1646304155535,0.16990613,43235.0,43234.0,0.40721678]
[1646304156131,0.16990613,43235.0,43234.0,0.41121678]
[1646304157338,0.16990613,43236.0,43234.0,0.41121678]
[1646304157563,0.00011043,43237.0,43234.0,0.18651054]
[1646304157764,0.16990613,43240.0,43234.0,0.18651054]
[1646304157968,0.16990613,43236.0,43234.0,0.18651054]
[1646304158565,0.16990613,43236.0,43234.0,0.42107321]
[1646304160168,0.16990613,43236.0,43234.0,0.42307321]
[1646304160569,0.00016152,43237.0,43234.0,0.42307321]
[1646304160767,0.00016152,43237.0,43234.0,0.18851054]
[1646304161225,0.11156,43245.0,43235.0,0.0463]
[1646304161226,0.01156,43245.0,43235.0,0.0463]
[1646304161423,0.2936,43247.0,43242.0,0.18723407]
[1646304161626,0.00064596,43244.0,43242.0,0.21160773]
[1646304161829,0.17055209,43244.0,43243.0,0.14]
[1646304162028,0.17055209,43244.0,43242.0,0.16534223]
[1646304162224,0.17055209,43244.0,43242.0,0.002]
[1646304162425,0.16990613,43244.0,43242.0,0.002]
[1646304162824,0.26738926,43243.0,43242.0,0.002]
[1646304163024,0.56738926,43243.0,43242.0,0.002]
[1646304163428,0.82314,43242.0,43224.0,0.1154]
[1646304163627,0.02314,43240.0,43229.0,0.18238946]
[1646304163824,0.2117125,43236.0,43229.0,0.21599217]
[1646304164024,0.3,43235.0,43229.0,0.21599217]
[1646304164224,0.3,43235.0,43224.0,0.1214]
[1646304164429,0.3,43235.0,43224.0,0.006]
[1646304165268,0.00015727,43233.0,43224.0,0.006]
[1646304165470,0.00015727,43233.0,43228.0,0.13785366]
[1646304165667,0.00015727,43233.0,43232.0,0.13785366]
[1646304166068,0.2117125,43236.0,43232.0,0.13785366]
[1646304166271,0.057857,43235.0,43228.0,0.004]
[1646304166471,0.3,43234.0,43228.0,0.004]
[1646304166669,0.3,43234.0,43232.0,0.13785366]
[1646304166870,0.05801427,43235.0,43233.0,0.13785366]
[1646304167076,0.05801427,43235.0,43228.0,0.004]
[1646304167273,0.3,43234.0,43228.0,0.004]
[1646304167473,0.057857,43235.0,43232.0,0.13785366]
[1646304167673,0.057857,43235.0,43224.0,0.24912159]
[1646304167873,0.3,43234.0,43224.0,0.24912159]
[1646304168077,0.16990613,43232.0,43222.0,0.23761845]
[1646304168274,0.16990613,43232.0,43227.0,0.001]
[1646304168574,0.16990613,43232.0,43231.0,0.03447119]
[1646304169645,0.16990613,43232.0,43222.0,0.19131845]
[1646304170244,0.16990613,43232.0,43222.0,0.19631845]
[1646304171045,0.16990613,43232.0,43225.0,0.27863803]
[1646304171844,0.16990613,43232.0,43222.0,0.19131845]
[1646304172247,0.16990613,43232.0,43222.0,0.29131845]
[1646304172862,0.16990613,43232.0,43223.0,0.28867207]
[1646304173260,0.3,43231.0,43223.0,0.28867207]
[1646304173659,0.16990613,43232.0,43223.0,0.28867207]
[1646304173959,0.3,43231.0,43223.0,0.28867207]
[1646304174159,0.16990613,43232.0,43223.0,0.29267207]
[1646304175461,0.16990613,43232.0,43223.0,0.28867207]
[1646304175867,0.3,43234.0,43223.0,0.28867207]
[1646304176065,0.16990613,43230.0,43223.0,0.28867207]
[1646304176315,0.00015296,43233.0,43223.0,0.28867207]
[1646304176918,0.16990613,43228.0,43223.0,0.28867207]
[1646304177120,0.3,43234.0,43225.0,0.05304506]
[1646304177320,0.00015296,43233.0,43225.0,0.05304506]
[1646304177915,0.00015296,43233.0,43224.0,0.20868946]
[1646304178117,0.3,43234.0,43225.0,0.004]
[1646304178519,0.00015279,43233.0,43225.0,0.004]
[1646304179319,0.16990613,43231.0,43227.0,0.05513559]
[1646304179624,0.01,43232.0,43227.0,0.05513559]
[1646304179824,0.01,43232.0,43227.0,0.10143559]
[1646304180359,0.01,43232.0,43227.0,0.10543559]
[1646304181463,0.01,43232.0,43228.0,0.3]
[1646304181663,0.01,43232.0,43229.0,0.0463]
[1646304182260,0.00015283,43233.0,43232.0,0.01999999]
[1646304182464,0.00015283,43233.0,43232.0,0.15999999]
[1646304182761,0.00015283,43233.0,43232.0,0.36435079]
[1646304182961,0.16990613,43237.0,43232.0,0.36435079]
[1646304183161,0.16990613,43237.0,43236.0,0.14]
[1646304183566,0.16990613,43238.0,43236.0,0.14]
[1646304183827,0.16990613,43238.0,43237.0,0.14]
[1646304186229,0.16990613,43238.0,43237.0,0.142]
[1646304186429,0.00015292,43240.0,43237.0,0.142]
[1646304186629,0.8888,43241.0,43237.0,0.002]
[1646304186829,0.17005905,43240.0,43239.0,0.20325988]
[1646304187670,0.17005905,43240.0,43234.0,0.23398312]
[1646304187864,0.8888,43241.0,43234.0,0.23398312]
[1646304188165,0.16990613,43237.0,43234.0,0.23398312]
[1646304188369,0.16990613,43237.0,43236.0,0.14]
[1646304189968,0.16990613,43237.0,43232.0,0.01999999]
[1646304190370,0.17290613,43237.0,43232.0,0.01999999]
[1646304190968,0.16990613,43235.0,43232.0,0.01999999]
[1646304191620,0.17005893,43236.0,43232.0,0.01999999]
[1646304192019,0.0001528,43236.0,43232.0,0.01999999]
[1646304192223,0.16990613,43233.0,43232.0,0.01999999]
[1646304194320,0.16990613,43233.0,43232.0,0.02099999]
[1646304195569,0.16990613,43233.0,43232.0,0.01999999]
[1646304196267,0.17190613,43233.0,43232.0,0.01999999]
[1646304197567,0.16990613,43233.0,43232.0,0.01999999]
[1646304198371,0.17090613,43233.0,43232.0,0.01999999]
[1646304199826,0.16990613,43233.0,43232.0,0.01999999]
[1646304200225,0.17290613,43233.0,43232.0,0.01999999]
[1646304200427,0.003,43233.0,43232.0,0.01999999]
[1646304200626,0.7229,43233.0,43232.0,0.01999999]
[1646304201725,0.88980613,43233.0,43232.0,0.01999999]
[1646304202124,0.88980613,43233.0,43232.0,0.07813467]
[1646304202324,0.88980613,43233.0,43232.0,0.08013467]
[1646304202568,0.7199,43233.0,43232.0,0.02199999]
[1646304203477,0.7199,43233.0,43232.0,0.01999999]
[1646304204272,0.7199,43233.0,43232.0,0.02299999]
[1646304204872,0.7199,43233.0,43232.0,0.02291213]
[1646304205573,0.7199,43233.0,43232.0,0.01991213]
[1646304206228,0.7199,43233.0,43232.0,0.02366213]
[1646304207631,0.7199,43233.0,43232.0,0.02066213]
[1646304210391,0.7199,43233.0,43232.0,0.02366213]
[1646304211580,0.7199,43233.0,43232.0,0.02066213]
[1646304212182,0.20645061,43233.0,43232.0,0.02066213]
[1646304216318,0.20645061,43233.0,43232.0,0.02466213]
[1646304217564,0.20645061,43233.0,43232.0,0.02066213]
[1646304220271,0.20645061,43233.0,43232.0,0.02466213]
[1646304220470,0.20645061,43233.0,43232.0,0.09973844]
[1646304220671,0.20645061,43233.0,43232.0,0.39973844]
[1646304220867,0.20645061,43233.0,43232.0,0.42287844]
[1646304221068,0.20645061,43233.0,43232.0,0.52287844]
[1646304221517,0.20645061,43233.0,43232.0,0.58071144]
[1646304221818,0.20645061,43233.0,43232.0,0.57671144]
[1646304222415,0.20645061,43233.0,43232.0,0.58171144]
[1646304223617,0.20645061,43233.0,43232.0,0.57671144]
[1646304224216,0.20645061,43233.0,43232.0,0.58171144]
[1646304225464,0.20645061,43233.0,43232.0,0.55357144]
[1646304226066,0.20645061,43233.0,43232.0,1.43171144]
[1646304226267,0.20645061,43233.0,43232.0,1.43671144]
[1646304226470,0.00015282,43235.0,43234.0,0.72814]
[1646304226669,0.00015282,43235.0,43234.0,1.21444]
[1646304226866,0.00015282,43235.0,43234.0,1.31444]
[1646304227266,0.00015282,43235.0,43234.0,1.51661489]
[1646304227469,0.1939,43249.0,43248.0,0.22286693]
[1646304227669,0.01,43249.0,43243.0,0.0463]
[1646304228067,0.17990613,43249.0,43243.0,0.0463]
[1646304228919,0.00015281,43248.0,43243.0,0.0463]
[1646304229925,0.17990613,43249.0,43243.0,0.0463]
[1646304230225,0.00015281,43248.0,43243.0,0.0463]
[1646304230427,0.00015281,43248.0,43243.0,0.1493]
[1646304230820,0.00015281,43248.0,43244.0,0.19150054]
[1646304231025,0.01,43249.0,43245.0,0.3463]
[1646304231233,0.01,43249.0,43248.0,0.14]
[1646304231423,0.01,43249.0,43248.0,0.1863]
[1646304232022,0.01,43249.0,43248.0,0.34263034]
[1646304232234,0.01,43249.0,43248.0,0.34763034]
[1646304232475,0.01,43249.0,43248.0,0.50543934]
[1646304232679,0.00011048,43251.0,43249.0,1.0]
[1646304232876,0.00011048,43251.0,43250.0,0.1863]
[1646304233274,0.00011048,43251.0,43250.0,0.4863]
[1646304233476,0.01,43259.0,43250.0,0.4863]
[1646304233679,0.0106118,43259.0,43256.0,0.16325285]
[1646304233875,0.0106118,43259.0,43258.0,0.34879961]
[1646304234076,0.0106118,43259.0,43258.0,0.14]
[1646304234277,0.0106118,43259.0,43256.0,0.20955285]
[1646304234475,0.0106118,43259.0,43256.0,0.0463]
[1646304234677,0.01,43259.0,43256.0,0.0463]
[1646304236335,0.01,43259.0,43256.0,0.0503]
[1646304237536,0.01,43259.0,43256.0,0.0463]
[1646304240081,0.01,43259.0,43256.0,0.23702956]
[1646304240278,0.01,43259.0,43256.0,0.0463]
[1646304241980,0.00981877,43259.0,43256.0,0.0463]
[1646304242380,0.00981877,43259.0,43256.0,0.0493]
[1646304243582,0.00981877,43259.0,43256.0,0.0463]
[1646304244824,0.00981877,43259.0,43258.0,0.1821959]
[1646304245228,0.00981877,43259.0,43256.0,0.0463]
[1646304246328,0.00981877,43259.0,43257.0,0.16359298]
[1646304246726,0.00981877,43259.0,43256.0,0.0503]
[1646304247769,0.00981877,43259.0,43257.0,0.161734]
[1646304247968,0.00981877,43259.0,43253.0,0.3463]
[1646304248166,0.00981877,43259.0,43253.0,0.0463]
[1646304249269,0.00015294,43258.0,43253.0,0.0463]
[1646304249672,0.17005907,43258.0,43250.0,0.50538367]
[1646304249870,0.05783,43256.0,43250.0,0.50538367]
[1646304250468,0.3,43255.0,43250.0,0.50538367]
[1646304250876,0.16990613,43251.0,43250.0,0.50538367]
[1646304251070,0.46990613,43251.0,43250.0,0.50538367]
[1646304251933,0.16990613,43251.0,43250.0,0.50538367]
[1646304252131,0.46990613,43251.0,43250.0,0.50538367]
[1646304252333,0.46990613,43251.0,43250.0,0.50638367]
[1646304253637,0.46990613,43251.0,43250.0,0.50538367]
[1646304254435,0.46990613,43251.0,43250.0,0.50638367]
[1646304255694,0.46990613,43251.0,43250.0,0.50538367]
[1646304256291,0.46990613,43251.0,43250.0,0.50738367]
[1646304257193,0.16990613,43251.0,43250.0,0.50738367]
[1646304257592,0.16990613,43251.0,43250.0,0.50538367]
[1646304259628,0.22775173,43251.0,43250.0,0.50538367]
[1646304260432,0.23275173,43251.0,43250.0,0.50538367]
[1646304261628,0.22775173,43251.0,43250.0,0.50538367]
[1646304265875,0.16990613,43251.0,43250.0,0.50538367]
[1646304266738,0.16990613,43251.0,43250.0,0.50528673]
[1646304268336,0.2277524,43251.0,43250.0,0.50528673]
[1646304268541,0.2277524,43251.0,43250.0,0.15823773]
[1646304269136,0.080984,43246.0,43232.0,0.32066213]
[1646304269338,0.22775013,43243.0,43232.0,0.32066213]
[1646304269638,0.22743936,43243.0,43238.0,0.24826202]
[1646304269840,0.115687,43244.0,43243.0,0.28596629]
[1646304270478,0.117687,43244.0,43243.0,0.28596629]
[1646304271778,0.117687,43244.0,43243.0,0.55192351]
[1646304271979,0.115687,43244.0,43243.0,0.55192351]
[1646304272380,0.115687,43244.0,43243.0,0.55392351]
[1646304273181,0.115687,43244.0,43243.0,0.28796629]
[1646304273857,0.115687,43244.0,43243.0,0.28596629]
[1646304274558,0.115687,43244.0,43243.0,0.50283751]
[1646304275458,0.115687,43244.0,43243.0,0.28596629]
[1646304276358,0.115687,43244.0,43243.0,0.28896629]
[1646304277776,0.057843,43245.0,43243.0,0.28596629]
[1646304278378,0.057843,43245.0,43243.0,0.28896629]
[1646304279677,0.057843,43245.0,43243.0,0.28596629]
[1646304280476,0.057843,43245.0,43243.0,0.28896629]
[1646304281730,0.057843,43245.0,43243.0,0.28596629]
[1646304282524,0.057843,43245.0,43243.0,0.28896629]
[1646304283528,0.00013865,43246.0,43243.0,0.28896629]
[1646304283726,0.00013865,43246.0,43243.0,0.28596629]
[1646304283927,0.057828,43251.0,43243.0,0.28596629]
[1646304284130,0.00013864,43247.0,43243.0,0.28596629]
[1646304284328,0.00013864,43247.0,43245.0,0.16896493]
[1646304284528,0.00013864,43247.0,43246.0,0.14]
[1646304285178,0.057828,43251.0,43246.0,0.14]
[1646304285383,0.00013864,43249.0,43245.0,0.16896493]
[1646304285979,0.00013864,43249.0,43248.0,0.06306142]
[1646304286178,0.00013864,43249.0,43245.0,0.16896493]
[1646304286380,0.057828,43251.0,43245.0,0.16896493]
[1646304286579,0.05796664,43251.0,43245.0,0.16896493]
[1646304287580,0.057828,43251.0,43249.0,0.06028156]
[1646304287782,0.1846,43254.0,43250.0,0.3]
[1646304288281,0.1846,43254.0,43251.0,0.17663918]
[1646304288481,0.057822,43256.0,43251.0,0.17663918]
[1646304288735,0.057822,43256.0,43254.0,0.19869533]
[1646304288935,0.00013864,43255.0,43254.0,0.19869533]
[1646304289938,0.057822,43256.0,43254.0,0.19869533]
[1646304290338,0.057822,43256.0,43254.0,0.20069533]
[1646304291742,0.057822,43256.0,43248.0,0.0463]
[1646304292472,0.057822,43256.0,43248.0,0.0493]
[1646304292673,0.00013864,43254.0,43251.0,0.19354528]
[1646304292972,0.00013864,43254.0,43251.0,0.25219788]
[1646304293674,0.115654,43255.0,43245.0,0.0463]
[1646304293874,0.11579264,43255.0,43245.0,0.0463]
[1646304294476,0.057829,43254.0,43245.0,0.0463]
[1646304294677,0.057826,43252.0,43250.0,0.06318415]
[1646304294874,0.057826,43252.0,43248.0,0.18656287]
[1646304295074,0.05796464,43252.0,43246.0,0.19411647]
[1646304295875,0.057826,43252.0,43246.0,0.19411647]
[1646304296075,0.057826,43252.0,43248.0,0.15635341]
[1646304296320,0.00013864,43251.0,43248.0,0.15635341]
[1646304296719,0.00013864,43251.0,43250.0,0.07343818]
[1646304296919,0.00013864,43251.0,43248.0,0.15635341]
[1646304297123,0.057826,43252.0,43246.0,0.19811647]
[1646304297619,0.057826,43252.0,43246.0,0.19411647]
[1646304298021,0.057826,43252.0,43246.0,0.25542086]
[1646304298223,0.057826,43252.0,43247.0,0.20200015]
[1646304298621,0.00013864,43251.0,43246.0,0.25542086]
[1646304299625,0.057826,43252.0,43246.0,0.41160232]
[1646304299823,0.00013864,43251.0,43246.0,0.19411647]
[1646304300286,0.00013864,43251.0,43241.0,0.3]
[1646304300490,0.057836,43250.0,43241.0,0.004]
[1646304300688,0.115671,43248.0,43241.0,0.004]
[1646304300991,0.00013864,43249.0,43248.0,0.231342]
[1646304301787,0.11581464,43249.0,43248.0,0.231342]
[1646304301990,0.115676,43249.0,43248.0,0.231342]
[1646304302388,0.115676,43249.0,43248.0,0.233342]
[1646304303824,0.115676,43249.0,43248.0,0.231342]
[1646304305426,0.115676,43249.0,43248.0,0.39574951]
[1646304306029,0.115676,43249.0,43248.0,0.231342]
[1646304308677,0.115676,43249.0,43248.0,0.38649627]
[1646304309278,0.115676,43249.0,43248.0,0.46603205]
[1646304309878,0.115676,43249.0,43248.0,0.31087778]
[1646304310479,0.115676,43249.0,43248.0,0.31387778]
[1646304310680,0.11549477,43249.0,43248.0,0.31387778]
[1646304311731,0.11549477,43249.0,43248.0,0.31087778]
[1646304312933,0.11549477,43249.0,43248.0,0.59483556]
[1646304314235,0.11549477,43249.0,43248.0,0.58713137]
[1646304314439,0.11549477,43249.0,43248.0,0.30317359]
[1646304314837,0.11542107,43249.0,43248.0,0.30317359]
[1646304315292,0.057837,43251.0,43248.0,0.30317359]
[1646304315489,0.05797564,43251.0,43248.0,0.46027028]
[1646304315688,0.05797564,43251.0,43248.0,0.22363781]
[1646304315890,0.05797564,43251.0,43250.0,0.07953578]
[1646304316090,0.00013864,43251.0,43250.0,0.07953578]
[1646304316489,0.231348,43252.0,43250.0,0.07953578]
[1646304320553,0.231348,43252.0,43250.0,0.08053578]
[1646304320950,0.231348,43252.0,43250.0,0.001]
[1646304321252,0.231348,43252.0,43251.0,0.07953578]
[1646304322488,0.173511,43253.0,43251.0,0.07953578]
[1646304324487,0.173511,43253.0,43251.0,0.08053578]
[1646304325089,0.057839,43253.0,43251.0,0.08053578]
[1646304325490,0.00013864,43254.0,43251.0,0.08053578]
[1646304325887,0.00013864,43254.0,43251.0,0.07953578]
[1646304326241,0.00013864,43255.0,43253.0,0.14]
[1646304326439,0.00013864,43255.0,43254.0,0.14]
[1646304326936,0.00013864,43255.0,43254.0,0.30074934]
[1646304327137,0.05782,43260.0,43255.0,1.0]
[1646304327341,0.22155648,43266.0,43256.0,0.02314]
[1646304327537,6.02e-06,43257.0,43256.0,0.12314]
[1646304327739,6.02e-06,43257.0,43256.0,0.57114941]
[1646304328137,6.02e-06,43257.0,43256.0,0.47114941]
[1646304328342,6.02e-06,43257.0,43256.0,0.14800941]
[1646304328537,0.22155648,43266.0,43256.0,0.14800941]
[1646304328736,0.22155648,43266.0,43256.0,0.0463]
[1646304329138,0.05,43269.0,43260.0,0.1581586]
[1646304329337,0.057813,43266.0,43261.0,0.0463]
[1646304329537,0.057813,43266.0,43262.0,0.18386585]
[1646304330195,0.057813,43266.0,43263.0,0.25416864]
[1646304330496,0.09233742,43270.0,43263.0,0.25416864]
[1646304331893,0.09233742,43270.0,43266.0,0.07953578]
[1646304332294,0.00016348,43269.0,43266.0,0.07953578]
[1646304333191,0.09233742,43270.0,43266.0,0.07953578]
[1646304333595,0.0925009,43270.0,43266.0,0.07953578]
[1646304334245,0.0925009,43270.0,43267.0,0.18715126]
[1646304334448,0.09233742,43270.0,43266.0,0.07953578]
[1646304334645,0.05797048,43270.0,43269.0,0.14]
[1646304334849,0.05797048,43270.0,43269.0,0.3]
[1646304334850,0.00016348,43270.0,43269.0,0.3]
[1646304335047,0.00016348,43270.0,43269.0,0.0463]
[1646304335245,0.00016348,43270.0,43269.0,0.1863]
[1646304335646,0.001,43276.0,43269.0,0.1863]
[1646304335845,0.001,43276.0,43269.0,0.0463]
[1646304336046,0.001,43276.0,43275.0,0.2046765]
[1646304336850,0.001,43276.0,43275.0,0.18877746]
[1646304337049,0.001,43276.0,43275.0,0.26831324]
[1646304337475,0.001,43276.0,43275.0,0.31461324]
[1646304337681,0.001,43276.0,43275.0,0.37238932]
[1646304338180,0.001,43276.0,43275.0,0.37238332]
[1646304338677,0.001,43276.0,43275.0,0.37738332]
[1646304339075,0.001,43276.0,43275.0,0.53182986]
[1646304339878,0.001,43276.0,43275.0,0.52682986]
[1646304340478,0.001,43276.0,43275.0,0.52982986]
[1646304341931,0.001,43276.0,43275.0,0.52682986]
[1646304342530,0.001,43276.0,43275.0,0.52982986]
[1646304343937,0.001,43276.0,43275.0,0.52682986]
[1646304344534,0.001,43276.0,43275.0,0.53082986]
[1646304345384,0.001,43276.0,43275.0,0.55396986]
[1646304345581,0.001,43276.0,43275.0,0.85396986]
[1646304345783,0.001,43276.0,43275.0,0.84996986]
[1646304346984,0.001,43276.0,43275.0,0.54996986]
[1646304347384,0.0010265,43282.0,43276.0,0.97314]
[1646304347585,0.0010265,43282.0,43281.0,0.02314]
[1646304347784,0.0010265,43282.0,43281.0,0.12720207]
[1646304347985,0.0010265,43282.0,43281.0,0.18359785]
[1646304348188,0.00998,43289.0,43283.0,0.02314]
[1646304348387,0.00998,43289.0,43288.0,0.09016714]
[1646304348584,0.00998,43289.0,43288.0,0.49863873]
[1646304348837,0.002,43291.0,43289.0,0.99309999]
[1646304349038,0.0015428,43291.0,43290.0,0.14794597]
[1646304349247,0.00165317,43291.0,43290.0,0.0463]
[1646304349640,0.00165317,43291.0,43290.0,0.2963]
[1646304349641,0.00111037,43291.0,43290.0,0.2963]
[1646304350039,0.001,43291.0,43290.0,0.2963]
[1646304350237,0.001,43291.0,43290.0,0.863916]
[1646304350438,0.001,43291.0,43290.0,1.04148244]
[1646304350638,0.001,43291.0,43290.0,1.04648244]
[1646304350839,0.001,43291.0,43290.0,0.8321251]
[1646304351242,0.001,43291.0,43290.0,0.36886644]
[1646304351645,0.001,43291.0,43290.0,0.61886644]
[1646304351843,0.001,43291.0,43290.0,0.82582201]
[1646304352242,0.001,43291.0,43290.0,1.10762129]
[1646304352485,0.001,43291.0,43290.0,1.07394003]
[1646304352697,0.001,43297.0,43290.0,1.07394003]
[1646304352698,0.8998,43309.0,43298.0,0.30452859]
[1646304352890,0.00065961,43299.0,43298.0,0.66599633]
[1646304353289,0.00065961,43299.0,43298.0,0.71146774]
[1646304353493,0.00065961,43299.0,43298.0,0.61146774]
[1646304353691,0.011,43309.0,43298.0,0.61146774]
[1646304354089,0.00116492,43301.0,43298.0,0.61146774]
[1646304354896,0.001,43301.0,43299.0,0.14]
[1646304355292,0.00116492,43301.0,43299.0,0.14]
[1646304356094,0.001,43301.0,43299.0,0.14]
[1646304357137,0.00063772,43308.0,43300.0,1.007745]
[1646304357440,0.011,43309.0,43302.0,0.25]
[1646304357634,0.011,43309.0,43302.0,0.2963]
[1646304358238,0.011,43309.0,43302.0,0.51583578]
[1646304358637,0.011,43309.0,43302.0,0.51883578]
[1646304359036,0.011,43309.0,43302.0,0.54197578]
[1646304359998,0.011,43309.0,43302.0,0.53897578]
[1646304360602,0.011,43309.0,43302.0,0.54197578]
[1646304361200,0.00016491,43305.0,43302.0,0.54197578]
[1646304361501,3.032887,43340.0,43303.0,0.97414]
[1646304361804,0.4173,43346.0,43338.0,0.15]
[1646304362001,0.4173,43346.0,43339.0,0.0463]
[1646304362202,0.4173,43346.0,43344.0,0.579]
[1646304362203,0.001,43346.0,43344.0,0.579]
[1646304362402,0.00131266,43348.0,43344.0,0.6253]
[1646304362403,0.00100266,43348.0,43344.0,0.6253]
[1646304362606,0.00183468,43368.0,43352.0,0.25]
[1646304362607,0.01153,43362.0,43352.0,0.25]
[1646304362803,0.30744671,43363.0,43361.0,0.579]
[1646304363002,0.30744671,43363.0,43362.0,0.6253]
[1646304363207,0.00183468,43368.0,43362.0,0.6253]
[1646304363208,0.00183468,43368.0,43363.0,1.0]
[1646304363403,0.00183468,43368.0,43367.0,0.979]
[1646304363601,0.01152,43380.0,43368.0,1.2]
[1646304363838,0.00652,43392.0,43374.0,0.95]
[1646304364032,0.00652,43392.0,43391.0,0.829]
[1646304364033,0.00240408,43392.0,43391.0,0.829]
[1646304364228,0.00240408,43392.0,43391.0,1.62366]
[1646304364429,0.00169081,43394.0,43392.0,1.0]
[1646304364636,0.0100438,43400.0,43394.0,1.0]
[1646304364834,0.01181686,43409.0,43402.0,0.05760784]
[1646304365032,0.01181686,43409.0,43408.0,0.579]
[1646304365233,0.01181686,43409.0,43408.0,0.71745093]
[1646304365430,0.01181686,43409.0,43408.0,0.61608829]
[1646304365629,0.36711886,43409.0,43408.0,0.5463]
[1646304365930,0.36711886,43409.0,43392.0,0.0443]
[1646304365931,0.1870167,43393.0,43392.0,0.0443]
[1646304366129,0.355302,43407.0,43391.0,0.005]
[1646304366532,0.01555599,43406.0,43391.0,0.005]
[1646304366733,0.002,43393.0,43387.0,0.002]
[1646304367130,0.16682088,43392.0,43387.0,0.002]
[1646304367333,0.355302,43391.0,43387.0,0.002]
[1646304367589,0.21056877,43390.0,43375.0,0.17143416]
[1646304367794,0.21056877,43390.0,43372.0,0.35968337]
[1646304367795,0.1,43390.0,43372.0,0.35968337]
[1646304367987,0.01152,43389.0,43376.0,0.5]
[1646304368187,0.355302,43388.0,43376.0,0.5]
[1646304368386,0.355302,43386.0,43376.0,0.5]
[1646304368587,0.1,43390.0,43374.0,1.02841142]
[1646304368588,0.173224,43383.0,43374.0,1.02841142]
[1646304368790,0.24948917,43381.0,43375.0,0.18528818]
[1646304368987,0.24948917,43381.0,43380.0,0.07953578]
[1646304369189,0.00016574,43385.0,43380.0,0.07953578]
[1646304369386,0.00016574,43385.0,43380.0,1.1079472]
[1646304369588,0.355302,43388.0,43380.0,1.1079472]
[1646304369789,0.21362173,43382.0,43380.0,1.1079472]
[1646304369989,0.355302,43381.0,43380.0,1.1079472]
[1646304370186,0.355302,43385.0,43380.0,1.1079472]
[1646304370390,0.27941993,43384.0,43380.0,1.1079472]
[1646304370888,0.27941993,43384.0,43380.0,0.07953578]